Cogmind - Beta 15 @@@ ROGUE MODE // 2025.09.27 @ 01:05:56 Player: luka.null Result: Destroyed by 0H-WNE(R) with Subdweller Machine Gun Performance ------------- Evolutions (0) 0 Regions Visited (2) 400 Robots Destroyed (13) 65 Value Destroyed (397) 397 Prototype IDs (0) 0 Alien Tech Used (0) 0 Bonus (0) 0 TOTAL SCORE: 862 Bonus ------- None Cogmind --------- Core Integrity 0/250 Matter 299/300 Energy 200/200 System Corruption 0% Temperature Cool (0) Movement Rolling (95) Location -10/Subcaves Parts ------- > --- POWER (1) -------- Subdweller Power Source > --- PROPULSION (2) --- Wheel Subdweller Monowheel > --- UTILITY (2) ------ Targeting Computer > --- WEAPON (2) ------- Small Laser Light Assault Rifle > --- INVENTORY (5) ---- Ion Engine Flight Unit Small Laser Small Laser Peak State ------------ > --- POWER ------------ Light Nuclear Core > --- PROPULSION ------- Wheel > --- UTILITY ---------- Targeting Computer Propulsion Shielding > --- WEAPON ----------- Particle Gun Particle Gun > --- INVENTORY -------- Ion Engine Flight Unit Small Laser Small Laser Small Laser [Rating: 10] Favorites ----------- Power Ion Engine Engine Ion Engine Power Core Light Nuclear Core Propulsion Wheel Wheel Wheel Hover Unit Hover Unit Flight Unit Flight Unit Utility Targeting Computer Processor Targeting Computer Protection Propulsion Shielding Weapon Small Laser Energy Gun Small Laser Ballistic Gun Light Assault Rifle Build | -11 -10 -10 ------- Run | Yrd Mat Sub Slots Evolved . | . . . Power . | . . . Propulsion . | . . . Utility . | . . . Weapon . | . . . Parts Attached 18 | 5 8 5 Power 3 | 1 1 1 Engine 2 | 1 . 1 Core 1 | . 1 . Reactor . | . . . Propulsion 7 | 2 2 3 Treads . | . . . Leg . | . . . Wheel 4 | 2 . 2 Hover 1 | . 1 . Flight 2 | . 1 1 Utility 2 | . 2 . Device . | . . . Storage . | . . . Processor 1 | . 1 . Hackware . | . . . Protection 1 | . 1 . Artifact . | . . . Weapon 6 | 2 3 1 Energy Gun 5 | 2 3 . Energy Cannon . | . . . Ballistic Gun 1 | . . 1 Ballistic Cannon . | . . . Launcher . | . . . Special Weapon . | . . . Impact Weapon . | . . . Slashing Weapon . | . . . Piercing Weapon . | . . . Special Melee Weapon . | . . . Unidentified Prototypes . | . . . Parts Lost 8 | . 2 6 Power 1 | . . 1 Propulsion 4 | . 2 2 Utility 1 | . . 1 Weapon 2 | . . 2 Highest Loss Streak 3 | . 1 3 To Critical Strikes . | . . . Average Backups 2 | . 1 4 Power . | . . 1 Propulsion . | . . . Utility . | . . . Weapon 1 | . . 2 Tool/Special . | . . . Unused Backups . | . . . Power . | . . . Propulsion . | . . . Utility . | . . . Weapon . | . . . Tool/Special . | . . . Average Slot Usage (%) 80 | . 76 87 Engine 11 | . 13 5 Core 2 | . . 7 Wheel 21 | . 24 14 Hover 1 | . 1 . Flight 2 | . 1 3 Processor 6 | . 3 14 Protection 6 | . 2 14 Energy Gun 25 | . 28 20 Ballistic Gun 1 | . . 6 Peak Build Rating 10 | 5 10 10 Average Rating 6 | 3 5 9 On Entrance 5 | . 5 10 Naked Turns . | . . . Heaviest Build 12 | 7 12 12 Greatest Support 30 | 20 20 30 Greatest Overweight (x) 2 | . 1 2 Average Overweight (x) . | . . . Largest Inventory Capacity 5 | 5 5 5 Average Capacity 5 | 5 5 5 Most Carried 5 | . 5 5 Average Carried 2 | . 1 4 Final Capacity 5 | 5 5 5 Final Carried 5 | . 5 4 Class Distribution -------------------- 86% | Mutant 13% | Scavenger-Mutant Dominant Class ---------------- Mutant | -10/Materials Mutant | -10/Subcaves Resources | -11 -10 -10 ----------- Run | Yrd Mat Sub Matter Collected 456 | 130 245 81 Remotely . | . . . Salvage Created 438 | . 366 72 Parts 22 | . 14 8 Haulers Intercepted . | . . . Recyclers Shooed . | . . . Parts Field Recycled . | . . . Retrieved Matter . | . . . Parts Self-Destructed 7 | . . 7 Prevented . | . . . Kills | -11 -10 -10 ------- Run | Yrd Mat Sub Combat Hostiles Destroyed 12 | . 8 4 Guns 12 | . 8 4 Classes Destroyed 4 | . 2 2 Watcher 1 | . 1 . Swarmer 3 | . . 3 Grunt 8 | . 8 . Subdweller 1 | . . 1 Best Kill Streak 3 | . 2 3 Combat Bots Only 3 | . 2 3 Max Kills in Single Turn 1 | . 1 1 Gunslinging . | . . . Exploded . | . . . Melee . | . . . Uniques/NPCs Destroyed . | . . . Combat | -11 -10 -10 -------- Run | Yrd Mat Sub Hostile Shots Fired 89 | . 37 52 Missed 21 | . 7 14 Hits 68 | . 30 38 Projectile 68 | . 30 38 Critical Strikes 1 | . 1 . Damage Taken 874 | . 380 494 Core 261 | . 84 177 Absorbed by Shields . | . . . Redirected to Shielding 54 | . 26 28 Core Remaining (%) 100 | 100 . . Volleys Fired 49 | . 25 24 Largest 2 | . 2 2 Hottest 130 | . 130 130 Shots Fired 87 | . 50 37 Gun 87 | . 50 37 Cannon . | . . . Launcher . | . . . Special . | . . . Kinetic 14 | . . 14 Thermal 73 | . 50 23 Explosive . | . . . Electromagnetic . | . . . Robot Hit Streak 13 | . 13 12 Robot Miss Streak 3 | . 2 3 Penetration Max . | . . . Secondary Targets 1 | . 1 . Max Gunslinging Chain 1 | . 1 . Shots Hit Robots 61 | . 35 26 Core Hits 28 | . 19 9 Critical Kills . | . . . Critical Parts Destroyed . | . . . Critical Strikes 1 | . . 1 Burn 1 | . . 1 Melee Attacks . | . . . Impact . | . . . Slashing . | . . . Piercing . | . . . Sneak Attacks . | . . . Combat Hostiles . | . . . Follow-up Attacks . | . . . Damage Inflicted 749 | . 439 310 Guns 749 | . 439 310 Cannons . | . . . Explosions . | . . . Melee . | . . . Ramming . | . . . Kinetic 75 | . . 75 Thermal 674 | . 439 235 Explosive . | . . . Electromagnetic . | . . . Impact . | . . . Slashing . | . . . Piercing . | . . . Highest Corruption . | . . . Average Corruption . | . . . Corruption Purged . | . . . Corruption Blocked . | . . . Overload Shots . | . . . Overflow Damage . | . . . Projectiles . | . . . Explosions . | . . . Melee . | . . . Knockbacks . | . . . Impact . | . . . Kinetic . | . . . Secondary . | . . . Self-Inflicted Damage . | . . . Shots . | . . . Rammed . | . . . Targets Rammed . | . . . Kicked . | . . . Crushed . | . . . Highest Temperature 468 | . 468 30 Average Temperature 134 | . 149 10 Received Heat Transfer 288 | . 234 54 Effects 1 | . 1 . Damage (minor) 1 | . 1 . Siege Activations . | . . . Martial Activations . | . . . Shielding Activations . | . . . Robots Disrupted . | . . . Combat Hostiles . | . . . Robots Corrupted . | . . . Combat Hostiles . | . . . Parts Fried . | . . . Impact Corruptions . | . . . Robots Melted . | . . . Combat Hostiles . | . . . Parts Melted 3 | . 1 2 Heat Transferred 1650 | . 1019 631 Parts Sabotaged . | . . . Parts Stolen . | . . . Parts Stripped . | . . . Power Chain Reactions . | . . . Alert | -11 -10 -10 ------- Run | Yrd Mat Sub Maximum Alert Level . | . . . Low Security (%) 100 | 100 100 . Level 1 . | . . . Level 2 . | . . . Level 3 . | . . . Level 4 . | . . . Level 5 . | . . . High Security . | . . . Max Security . | . . . Peak Influence 61 | . 61 . Initial . | . . . Average 10 | . 10 . Influence Increases 278 | . 208 70 Destroy 0b10 Robot/C 220 | . 160 60 Destroy 0b10 Robot/NC 5 | . 5 . Destroy Leader 42 | . 32 10 Successful Hack 10 | . 10 . Destroy Structure 1 | . 1 . Influence Decreases 278 | . 165 113 Entered New Map 22 | . . 22 Time Decay 216 | . 155 61 Lost Part 40 | . 10 30 Squads Dispatched . | . . . Investigation . | . . . Extermination . | . . . Reinforcement . | . . . Assault . | . . . Garrison . | . . . Intercept . | . . . Searches Triggered . | . . . Construction Impeded . | . . . Haulers Reinforced . | . . . Active Scanning Responses . | . . . Cargo Convoy Interrupts . | . . . Stealth | -11 -10 -10 --------- Run | Yrd Mat Sub Distress Signals . | . . . Communications Jammed . | . . . Distress Signals . | . . . Times Spotted 15 | . 9 6 Peak Tracking Total 3 | . 2 3 Tactical Retreats . | . . . Traps | -11 -10 -10 ------- Run | Yrd Mat Sub Traps Triggered . | . . . Indirectly . | . . . Trap Hack Attempts . | . . . Triggered . | . . . Disarmed . | . . . Reprogrammed . | . . . Reused . | . . . Traps Extracted . | . . . Installed . | . . . Triggered . | . . . Machines | -11 -10 -10 ---------- Run | Yrd Mat Sub Machines Disabled . | . . . Max in Single Turn . | . . . Machines Repaired . | . . . Machines Dismantled . | . . . Machines Sabotaged . | . . . Overloaded Fab Kills . | . . . Hacking | -11 -10 -10 --------- Run | Yrd Mat Sub Machines Accessed 2 | . 2 . Terminals 2 | . 2 . Fabricators . | . . . Repair Stations . | . . . Recycling Units . | . . . Scanalyzers . | . . . Garrison Access . | . . . Total Hacks 7 | . 7 . Successful 3 | . 3 . Failed 4 | . 4 . Catastrophic . | . . . Database Lockouts . | . . . Manual 5 | . 5 . Terminals 7 | . 7 . Fabricators . | . . . Repair Stations . | . . . Recycling Units . | . . . Scanalyzers . | . . . Garrison Access . | . . . Terminal Hacks 1 | . 1 . Zone Layout 1 | . 1 . Fabricator Hacks . | . . . Repair Station Hacks . | . . . Recycling Unit Hacks . | . . . Scanalyzer . | . . . Garrison Access Hacks . | . . . Unauthorized Hacks 2 | . 2 . Terminals 2 | . 2 . Botnet 2 | . 2 . Fabricators . | . . . Repair Stations . | . . . Recycling Units . | . . . Scanalyzers . | . . . Garrison Access . | . . . Data Cores Recovered . | . . . Used . | . . . Hacking Detections 1 | . 1 . Full Trace Events . | . . . Feedback Events . | . . . Feedback Blocked . | . . . Robot Schematics Acquired . | . . . Robots Built . | . . . Authchips . | . . . Time . | . . . Total Robot Build Rating . | . . . Part Schematics Acquired . | . . . Parts Built . | . . . Authchips . | . . . Time . | . . . Total Part Build Rating . | . . . Parts Repaired . | . . . Time . | . . . Parts Recycled . | . . . Recycled Matter . | . . . Retrieved Matter . | . . . Retrieved Components . | . . . Parts Scanalyzed . | . . . Part Schematics Acquired . | . . . Parts Damaged . | . . . Bothacking | -11 -10 -10 ------------ Run | Yrd Mat Sub Used RIF Installer . | . . . Robots Hacked . | . . . Non-combat . | . . . Combat . | . . . Robot Hacks Applied . | . . . Relay Couplers Released . | . . . Fabnet Peak Effective % . | . . . Robots Rewired . | . . . Allies Hacked . | . . . Hacks Repelled . | . . . Allies | -11 -10 -10 -------- Run | Yrd Mat Sub Total Allies . | . . . Largest Group . | . . . Highest-Rated Group . | . . . Highest-Rated Ally . | . . . Total Orders . | . . . Ally Attacks . | . . . Total Damage . | . . . Kills . | . . . Allies Corrupted . | . . . Allies Melted . | . . . Intel | -11 -10 -10 ------- Run | Yrd Mat Sub Active Infowar (turns) . | . . . Robot Analysis Total . | . . . Derelict Logs Recovered . | . . . Drone Launches . | . . . Drone Recoveries . | . . . Exploration | -11 -10 -10 ------------- Run | Yrd Mat Sub Turns Passed 1542 | 44 1062 436 Spaces Moved 909 | 47 458 404 Core 10 | 4 . 6 Treads . | . . . Legs . | . . . Wheels 743 | 43 377 323 Hover 81 | . 81 . Flight 75 | . . 75 Fastest Speed 37 | 50 80 37 Average Speed 88 | 77 88 90 Slowest Speed 150 | 80 120 150 Overloaded Moves . | . . . Propulsion Burnouts . | . . . Robots Hopped . | . . . Potential Cave-ins . | . . . Cave-ins Triggered . | . . . Exploration Rate (%) 34 | 3 51 48 Regions Visited 2 Branch Regions 1 Pre-discovered Areas . | . . . Known Exits Taken . | . . . Unknown Exits Taken 2 | 1 1 . Scrap Searched . | . . . Spaces Dug . | . . . Terrain Destroyed . | . . . Melee . | . . . Projectile . | . . . AOE . | . . . Terrain Rammed . | . . . Walls Destroyed . | . . . Machines Disabled . | . . . Actions | -11 -10 -10 --------- Run | Yrd Mat Sub Total 1548 | 51 1058 439 Wait 564 | . 561 3 Move 907 | 46 457 404 Hop . | . . . Pick Up 3 | . 2 1 Fast Attach 11 | 5 2 4 Attach 3 | . 1 2 Detach . | . . . Swap 11 | . 10 1 Drop . | . . . Fire 49 | . 25 24 Melee . | . . . Ram . | . . . Kick . | . . . Crush . | . . . Escape Stasis . | . . . Rewire . | . . . Trap . | . . . Miscellaneous . | . . . Route ------- -11/Scrapyard -10/Materials (discovered 3 exits: [*Mat x2] / [*Sub]) -10/Subcaves History --------- Turn | Location | Event 7 | -11/Scrapyard | Discovered new exit (range 16) 45 | -11/Scrapyard | Entered Materials 312 | -10/Materials | Build established: Mutant 794 | -10/Materials | Discovered new exit (range 8) 911 | -10/Materials | Discovered new exit (range 15) 1096 | -10/Materials | Discovered new exit (range 11) 1107 | -10/Materials | Entered Subcaves 1108 | -10/Subcaves | Approached by a straggling Scientist 1329 | -10/Subcaves | Core integrity fell below 50% 1363 | -10/Subcaves | Lost 3 parts (1p1n1w) 1538 | -10/Subcaves | Core integrity fell below 20% 1543 | -10/Subcaves | Destroyed by 0H-WNE(R) with Subdweller Machine Gun Last Messages --------------- PR-SJ7(c): "I think it's somewhere east of here" 01413_ Particle Gun destroyed. 01414_ Acquired 1 matter. 01415_ Flight Unit destroyed. 01416_ Acquired 1 matter. 01416_ Subatomizers dissect the Lgt. Ion Engine. 01418_ Acquired 1 matter. 01419_ Acquired 10 matter. 01420_ Acquired 1 matter. 01425_ Sub. Laser melted. 01425_ CC-HW3(R) destroyed. 01426_ Acquired 1 matter. 01430_ Subatomizers dissect the Lgt. Ion Engine, destroying it. 01442_ Acquired Wheel. 01444_ Subatomizers dissect the Sub. Optics. 01444_ Acquired 10 matter. 01459_ Subatomizers dissect the Sub. Optics. PR-SJ7(c): "I think it's somewhere east of here" 01541_ Propulsion Shielding destroyed. Map ----- +----------------------------------------------------+ | ?????????????????????????????????????????????????? | | ?????????????????????????????????????????????????? | | ?????????????????????????????????????????????????? | | ?????????????????????????????????????????????????? | | ?????????????????????????????????????????????????? | | ?????????????????????????????????????????????????? | | ?????????????????????????????????????????????????? | | ?????????????????????????????????????????????????? | | ?????????????????????????????????????????????????? | | ?????????????????????????????????????????????????? | | ?????????????????????????????????????????????????? | | ?????????????????????????????????????????????????? | | ?????????????????????????????????????????????????? | | ?????????????????????????????????????????????????? | | ???########??????????????????????????????????????? | | ???# ##?????????????????????????????????????? | | ###? #?????????????????????????????????????? | | #??# ##????????????????????????????????????? | | #??## #????????????????????????????????????? | | #?## #????????????????????????????????????? | | ### #????????????????????????????????????? | | ###??????????????????????????????????? | | ###########??###???????????????????? | | # ## # ### #???????????????????? | | #### c R #???????????????????? | | #??## @R #???????????????????? | | #??# # # # # # # #???????????????? | | ## ################## #???????????????? | | ##????????????????? # #??????????????? | | #### # ??????????????????? " ????????????? | | ???#### ##???????????????????"" ??????????? | | ??????# #?????????????????????"" ? ??????????? | | ?????? ?????????????????????? ? ? #???????????? | | ????? ???????????????????????????????????????? | | ????? ##??????????????????????????????????????? | | ????? ##???????????????????????????????????????? | | ?????###?????????????????????????????????????????? | | ?????????????????????????????????????????????????? | | ?????????????????????????????????????????????????? | | ?????????????????????????????????????????????????? | | ?????????????????????????????????????????????????? | | ?????????????????????????????????????????????????? | | ?????????????????????????????????????????????????? | | ?????????????????????????????????????????????????? | | ?????????????????????????????????????????????????? | | ?????????????????????????????????????????????????? | | ?????????????????????????????????????????????????? | | ?????????????????????????????????????????????????? | | ?????????????????????????????????????????????????? | | ?????????????????????????????????????????????????? | +----------------------------------------------------+ Best States ------------- Heat Dissipation 25 Energy Generation 15 Energy Capacity 250 Matter Stores 300 Matter Capacity 300 Sight Range 16 Terrain Scan Density 10 Propulsion Shielding 33 Evasion (%) 62 Targeting Accuracy 5 Item Schematics ----------------- None Robot Schematics ------------------ None Fabricated ------------ Nothing Repaired ---------- Nothing Alien Tech Used ----------------- None Achievements -------------- None Challenges ------------ None Game ------ Seed FactorySalvageDeconstructor Manual? 0 Play Time 00:13:10 Cumulative 15.5 hours Start 2025.09.27 @ 00:49:50 End 2025.09.27 @ 01:05:56 Sessions 1 Manual Loads 0 Difficulty Rogue Special Mode None Game No. 17 Rogue 14 Adventurer 3 Explorer 0 Win Type - Total 0 Types 0/0/0/0/0/0/0/0/0/0 Lore% 15 Gallery% 12 Achievement% 14 Wizard Run 0 Options --------- Layout 1 ASCII 0 Keyboard 0 Movement Vi Keybinds 0 Fullscreen 0 Font 20/Terminus Map View 64x48 Zoom Use 0% Tactical HUD 1 Map Filters NONE Filters NONE Steam 1 RUN: fbfe78bb-73c9-40bc-ac58-b8070f507592